[Event "2019 National Open"]
[Site "Las Vegas"]
[Date "2019.06.16"]
[Round "9"]
[White "Katz, Alexander"]
[Black "Sorokin, Aleksey"]
[Result "0-1"]
[ECO "B19"]
[WhiteElo "2427"]
[BlackElo "2536"]
[PlyCount "70"]
[EventDate "2019.??.??"]
[TimeControl "5400+30"]
[WhiteClock "0:50:02"]
[BlackClock "0:17:18"]

1. e4 {[%emt 0:00:00]} c6 {[%emt 0:00:04]} 2. d4 {[%emt 0:00:04]} d5 {[%emt 0:00:11]} 3. Nc3 {[%emt 0:00:04]} dxe4 {[%emt 0:02:15]} 4. Nxe4 {[%emt 0:00:06]} Bf5 {[%emt 0:00:07]} 5. Ng3 {[%emt 0:00:05]} Bg6 {[%emt 0:00:04]} 6. h4 {[%emt 0:00:03]} h6 {[%emt 0:00:06]} 7. Nf3 {[%emt 0:00:04]} e6 {[%emt 0:00:14]} 8. h5 {[%emt 0:01:12]} Bh7 {[%emt 0:00:06]} 9. Bd3 {[%emt 0:00:04]} Bxd3 {[%emt 0:00:13]} 10. Qxd3 {[%emt 0:00:00]} Nf6 {[%emt 0:00:55]} 11. Bd2 {[%emt 0:07:45]} c5 {[%emt 0:01:19]} 12. O-O-O {[%emt 0:02:00]} Nc6 {[%emt 0:00:55]} 13. Be3 {[%emt 0:01:50]} Qa5 {[%emt 0:04:25]} 14. Qb3 {[%emt 0:05:35]} O-O-O {[%emt 0:01:43]} 15. Ne5 {[%emt 0:06:40]} Qc7 {[%emt 0:02:04]} 16. Nxc6 {[%emt 0:04:56]} Qxc6 {[%emt 0:00:26]} 17. dxc5 {[%emt 0:00:18]} Bxc5 {[%emt 0:01:14]} 18. Bxc5 {[%emt 0:01:00]} Qxc5 {[%emt 0:00:15]} 19. Qf3 {[%emt 0:01:02]} Qc4 {[%emt 0:06:27]} 20. b3 {[%emt 0:01:36]} Qc5 {[%emt 0:00:57]} 21. Kb2 {[%emt 0:10:23]} Qe5+ {[%emt 0:00:46]} 22. Qc3+ {[%emt 0:04:14]} Qxc3+ {[%emt 0:00:08]} 23. Kxc3 {[%emt 0:00:00]} Kc7 {[%emt 0:05:36]} 24. Kb2 {[%emt 0:08:20]} b6 {[%emt 0:00:41]} 25. c4 {[%emt 0:06:55]} Ng4 {[%emt 0:01:07]} 26. Rxd8 {[%emt 0:00:25]} Rxd8 {[%emt 0:00:26]} 27. Kc2 {[%emt 0:00:18]} Rd7 {[%emt 0:05:36]} 28. Rf1 {[%emt 0:01:32]} a6 {[%emt 0:01:21]} 29. Ne4 {[%emt 0:01:16]} f5 {[%emt 0:01:57]} 30. Nc3 {[%emt 0:02:52]} Nf6 {[%emt 0:02:25]} 31. Re1 {[%emt 0:00:12]} Rd6 {[%emt 0:01:53]} 32. Re5 {[%emt 0:04:11]} Rc6 {[%emt 0:02:44]} 33. a4 {[%emt 0:09:58]} Nxh5 {[%emt 0:04:45]} 34. Ne2 {[%emt 0:02:04]} Kd6 {[%emt 0:02:48]} 35. Nd4 {[%emt 0:03:08]} Rxc4+ {[%emt 0:01:15]} 0-1

[Event "2019 National Open"]
[Site "Las Vegas"]
[Date "2019.06.16"]
[Round "9"]
[White "Kavutskiy, Konstantin"]
[Black "Belous, Vladimir"]
[Result "1/2-1/2"]
[ECO "A43"]
[WhiteElo "2417"]
[BlackElo "2514"]
[PlyCount "96"]
[EventDate "2019.??.??"]
[TimeControl "5400+30"]
[WhiteClock "0:06:54"]
[BlackClock "0:02:58"]

1. d4 {[%emt 0:00:00]} c5 {[%emt 0:00:23]} 2. d5 {[%emt 0:00:08]} g6 {[%emt 0:00:05]} 3. c4 {[%emt 0:00:41]} Bg7 {[%emt 0:00:03]} 4. e4 {[%emt 0:00:25]} d6 {[%emt 0:00:03]} 5. Nc3 {[%emt 0:00:29]} e6 {[%emt 0:00:06]} 6. Nge2 {[%emt 0:02:42]} exd5 {[%emt 0:01:08]} 7. cxd5 {[%emt 0:00:07]} Ne7 {[%emt 0:00:07]} 8. h4 {[%emt 0:03:09]} O-O {[%emt 0:04:58]} 9. h5 {[%emt 0:01:15]} Nd7 {[%emt 0:00:15]} 10. Ng3 {[%emt 0:06:17]} a6 {[%emt 0:03:06]} 11. a4 {[%emt 0:01:40]} f5 {[%emt 0:05:44]} 12. hxg6 {[%emt 0:04:29]} hxg6 {[%emt 0:03:04]} 13. Bf4 {[%emt 0:12:08]} fxe4 {[%emt 0:03:32]} 14. Qd2 {[%emt 0:00:19]} Ne5 {[%emt 0:02:23]} 15. Be2 {[%emt 0:14:48]} Nf5 {[%emt 0:01:24]} 16. Ngxe4 {[%emt 0:01:45]} Nd4 {[%emt 0:04:11]} 17. Bxe5 {[%emt 0:04:26]} Bxe5 {[%emt 0:01:30]} 18. Qh6 {[%emt 0:00:09]} Bg7 {[%emt 0:00:45]} 19. Qh7+ {[%emt 0:02:40]} Kf7 {[%emt 0:00:02]} 20. Qh2 {[%emt 0:00:17]} Nc2+ {[%emt 0:01:49]} 21. Kd2 {[%emt 0:00:19]} Nxa1 {[%emt 0:00:32]} 22. Nxd6+ {[%emt 0:00:41]} Ke7 {[%emt 0:00:04]} 23. Re1 {[%emt 0:06:47]} Rxf2 {[%emt 0:23:40]} 24. Qh4+ {[%emt 0:02:25]} Kd7 {[%emt 0:01:01]} 25. Qxf2 {[%emt 0:00:36]} Nb3+ {[%emt 0:09:28]} 26. Kd1 {[%emt 0:00:05]} Kxd6 {[%emt 0:01:16]} 27. Qg3+ {[%emt 0:01:40]} Be5 {[%emt 0:06:37]} 28. Ne4+ {[%emt 0:00:06]} Kxd5 {[%emt 0:00:05]} 29. Qxb3+ {[%emt 0:08:41]} Kc6+ {[%emt 0:00:06]} 30. Kc2 {[%emt 0:00:21]} Qb6 {[%emt 0:06:55]} 31. Bf3 {[%emt 0:00:55]} Qxb3+ {[%emt 0:05:27]} 32. Kxb3 {[%emt 0:00:05]} Be6+ {[%emt 0:00:04]} 33. Kc2 {[%emt 0:01:25]} Bd5 {[%emt 0:00:38]} 34. Nd2 {[%emt 0:06:47]} Bxf3 {[%emt 0:01:21]} 35. Nxf3 {[%emt 0:00:06]} Bd6 {[%emt 0:00:01]} 36. Re6 {[%emt 0:00:27]} Rg8 {[%emt 0:00:04]} 37. Ne5+ {[%emt 0:01:42]} Kd5 {[%emt 0:00:03]} 38. Rxg6 {[%emt 0:00:08]} Re8 {[%emt 0:00:54]} 39. Nc4 {[%emt 0:02:59]} Bf4 {[%emt 0:03:27]} 40. Kd3 {[%emt 0:07:24]} b5 {[%emt 0:00:22]} 41. axb5 {[%emt 0:00:18]} axb5 {[%emt 0:00:00]} 42. Nb6+ {[%emt 0:01:18]} Ke5 {[%emt 0:07:11]} 43. Nd7+ {[%emt 0:05:38]} Kf5 {[%emt 0:00:00]} 44. Rf6+ {[%emt 0:00:07]} Kg5 {[%emt 0:00:04]} 45. Rc6 {[%emt 0:00:27]} Re3+ {[%emt 0:00:17]} 46. Kc2 {[%emt 0:00:09]} Re2+ {[%emt 0:01:07]} 47. Kb1 {[%emt 0:00:33]} Be3 {[%emt 0:01:42]} 48. Nxc5 {[%emt 0:00:59]} Rxg2 {[%emt 0:00:02]} 1/2-1/2

[Event "2019 National Open"]
[Site "Las Vegas"]
[Date "2019.06.16"]
[Round "9"]
[White "Rozman, Levy"]
[Black "Tang, Andrew"]
[Result "0-1"]
[ECO "D30"]
[WhiteElo "2368"]
[BlackElo "2496"]
[PlyCount "46"]
[EventDate "2019.??.??"]
[TimeControl "5400+30"]
[WhiteClock "0:17:52"]
[BlackClock "0:12:54"]

1. c4 {[%emt 0:00:00]} e6 {[%emt 0:00:09]} 2. d4 {[%emt 0:00:36]} d5 {[%emt 0:00:04]} 3. Nf3 {[%emt 0:00:02]} Nf6 {[%emt 0:00:10]} 4. Bg5 {[%emt 0:00:56]} Be7 {[%emt 0:01:10]} 5. e3 {[%emt 0:00:15]} h6 {[%emt 0:01:47]} 6. Bxf6 {[%emt 0:02:20]} Bxf6 {[%emt 0:00:00]} 7. Qc2 {[%emt 0:00:10]} O-O {[%emt 0:01:37]} 8. h4 {[%emt 0:01:12]} g6 {[%emt 0:05:25]} 9. g4 {[%emt 0:01:47]} Bg7 {[%emt 0:01:49]} 10. Nc3 {[%emt 0:15:32]} c5 {[%emt 0:05:06]} 11. O-O-O {[%emt 0:05:25]} cxd4 {[%emt 0:07:29]} 12. Nxd4 {[%emt 0:24:16]} Nc6 {[%emt 0:03:42]} 13. Nde2 {[%emt 0:07:17]} Qa5 {[%emt 0:02:41]} 14. h5 {[%emt 0:05:05]} dxc4 {[%emt 0:18:30]} 15. hxg6 {[%emt 0:09:32]} Nb4 {[%emt 0:00:02]} 16. Qe4 {[%emt 0:00:01]} Nd3+ {[%emt 0:04:19]} 17. Rxd3 {[%emt 0:00:09]} cxd3 {[%emt 0:00:00]} 18. Nd4 {[%emt 0:00:59]} d2+ {[%emt 0:05:25]} 19. Kd1 {[%emt 0:02:21]} Qb4 {[%emt 0:02:54]} 20. g5 {[%emt 0:04:02]} h5 {[%emt 0:14:35]} 21. Rxh5 {[%emt 0:05:19]} Qxb2 {[%emt 0:00:26]} 22. Rh7 {[%emt 0:01:20]} Qc1+ {[%emt 0:06:10]} 23. Ke2 {[%emt 0:00:00]} Qe1+ {[%emt 0:00:08]} 0-1

[Event "2019 National Open"]
[Site "Las Vegas"]
[Date "2019.06.16"]
[Round "9"]
[White "Sun, Rick"]
[Black "Yanayt, Eugene"]
[Result "0-1"]
[ECO "A45"]
[WhiteElo "1967"]
[BlackElo "2241"]
[PlyCount "72"]
[EventDate "2019.??.??"]
[TimeControl "5400+30"]
[WhiteClock "0:20:03"]
[BlackClock "0:02:07"]

1. d4 {[%emt 0:00:00]} Nf6 {[%emt 0:00:10]} 2. Bf4 {[%emt 0:00:17]} d5 {[%emt 0:01:28]} 3. e3 {[%emt 0:00:09]} c5 {[%emt 0:00:46]} 4. c3 {[%emt 0:00:53]} Nc6 {[%emt 0:04:04]} 5. Nd2 {[%emt 0:01:17]} g6 {[%emt 0:02:49]} 6. Ngf3 {[%emt 0:04:54]} Bg7 {[%emt 0:02:18]} 7. Bd3 {[%emt 0:12:29]} Nh5 {[%emt 0:02:12]} 8. Bg3 {[%emt 0:01:21]} O-O {[%emt 0:07:52]} 9. O-O {[%emt 0:11:12]} Nxg3 {[%emt 0:02:04]} 10. hxg3 {[%emt 0:01:19]} e5 {[%emt 0:01:04]} 11. dxe5 {[%emt 0:00:51]} Nxe5 {[%emt 0:01:01]} 12. Nxe5 {[%emt 0:01:09]} Bxe5 {[%emt 0:00:00]} 13. e4 {[%emt 0:15:05]} d4 {[%emt 0:05:17]} 14. Nf3 {[%emt 0:07:42]} Bg7 {[%emt 0:02:19]} 15. cxd4 {[%emt 0:02:40]} cxd4 {[%emt 0:01:02]} 16. Bc4 {[%emt 0:08:23]} Bg4 {[%emt 0:08:53]} 17. Qb3 {[%emt 0:03:42]} Qe7 {[%emt 0:04:11]} 18. Bd5 {[%emt 0:07:22]} Rac8 {[%emt 0:04:18]} 19. Rfd1 {[%emt 0:06:46]} Kh8 {[%emt 0:04:06]} 20. Rd3 {[%emt 0:06:05]} f5 {[%emt 0:01:32]} 21. Re1 {[%emt 0:02:11]} Qc5 {[%emt 0:05:10]} 22. Qa3 {[%emt 0:02:34]} Qxa3 {[%emt 0:10:18]} 23. Rxa3 {[%emt 0:02:05]} Rfe8 {[%emt 0:00:46]} 24. Bxb7 {[%emt 0:00:57]} d3 {[%emt 0:03:42]} 25. e5 {[%emt 0:00:29]} Bxe5 {[%emt 0:02:16]} 26. Nd2 {[%emt 0:00:04]} Be2 {[%emt 0:00:01]} 27. Bf3 {[%emt 0:00:26]} Bxb2 {[%emt 0:02:50]} 28. Rb3 {[%emt 0:00:48]} Bf6 {[%emt 0:00:01]} 29. Kh2 {[%emt 0:00:00]} Bd4 {[%emt 0:00:00]} 30. Bxe2 {[%emt 0:00:00]} Bxf2 {[%emt 0:00:53]} 31. Bxd3 {[%emt 0:00:00]} Rxe1 {[%emt 0:00:29]} 32. Nf3 {[%emt 0:00:09]} Re3 {[%emt 0:00:29]} 33. Bc4 {[%emt 0:00:28]} Rxb3 {[%emt 0:00:39]} 34. Bxb3 {[%emt 0:00:02] d3 [%clk 0:20:55] Bc4 [%clk 0:02:18]} h5 {[%emt 0:01:25]} 35. Kh3 {[%emt 0:01:16]} Kg7 {[%emt 0:00:31] b3 [%clk 0:02:13] Kf6 [%clk 0:19:55]} 36. Kh2 {[%emt 0:00:48]} g5 {[%emt 0:01:01]} 0-1